fUST/lending_fUST_20250822
["ID","MTS","AMOUNT","RATE_DAILY","PERIOD"]
[380503767,1755796244598,-480.0,0.00019912,2]
[380503768,1755796244609,-1223.71,0.00019912,2]
[380503769,1755796244619,-480.0,0.00019912,2]
[380503770,1755796244628,-480.0,0.00019912,2]
[380503771,1755796244637,-677.58,0.00019912,2]
[380503772,1755796244647,-480.0,0.00019912,2]
[380503773,1755796244656,-480.0,0.00019912,2]
[380503774,1755796244666,-480.0,0.00019912,2]
[380503775,1755796244675,-480.0,0.00019912,2]
[380503776,1755796244686,-480.0,0.00019912,2]
[380503777,1755796244696,-480.0,0.00019912,2]
[380503778,1755796244706,-480.0,0.00019912,2]
[380503779,1755796244715,-480.0,0.00019912,2]
[380503780,1755796244726,-566.96,0.00019912,2]
[380503781,1755796244735,-480.0,0.00019912,2]
[380503782,1755796244744,-480.0,0.00019912,2]
[380503783,1755796244754,-480.0,0.00019912,2]
[380503784,1755796244763,-480.0,0.00019912,2]
[380503785,1755796244773,-1649.16,0.00019912,2]
[380503786,1755796244783,-480.0,0.00019912,2]
[380503787,1755796244793,-480.0,0.00019912,2]
[380503788,1755796244944,-715.91,0.00019912,2]
[380503789,1755796244954,-480.0,0.00019912,2]
[380503790,1755796244963,-691.28,0.00019912,2]
[380503791,1755796244973,-480.0,0.00019912,2]
[380503792,1755796244983,-480.0,0.00019912,2]
[380503793,1755796244992,-1001.2,0.00019912,2]
[380503794,1755796245003,-480.0,0.00019912,2]
[380503795,1755796245012,-480.0,0.00019912,2]
[380503796,1755796245022,-480.0,0.00019912,2]
[380503797,1755796245031,-480.0,0.00019912,2]
[380503798,1755796245041,-720.08,0.00019912,2]
[380503799,1755796245050,-480.0,0.00019912,2]
[380503800,1755796245060,-480.0,0.00019912,2]
[380503801,1755796245071,-480.0,0.00019912,2]
[380503802,1755796245080,-823.48,0.00019912,2]
[380503803,1755796245091,-481.4425772,0.00019912,2]
[380503804,1755796245100,-480.0,0.00019912,2]
[380503805,1755796245110,-480.0,0.00019912,2]
[380503806,1755796245119,-480.0,0.00019912,2]
[380503807,1755796245128,-480.0,0.00019912,2]
[380503808,1755796245138,-383.88126033,0.00019912,2]
[380503809,1755796245147,-612.13,0.00019912,2]
[380503810,1755796245157,-276.3425615,0.00019912,2]
[380503811,1755796245167,-502.96,0.00019912,2]
[380503812,1755796245178,-551.16,0.00019912,2]
[380503813,1755796245188,-529.97,0.00019912,2]
[380503814,1755796245198,-429.0886432,0.00019912,2]
[380503815,1755796245208,-750.1,0.00019912,2]
[380503816,1755796245218,-3389.44,0.00019912,2]
[380503817,1755796245227,-480.0,0.00019912,2]
[380503818,1755796245236,-480.0,0.00019912,2]
[380503819,1755796245246,-480.0,0.00019912,2]
[380503820,1755796245256,-587.17,0.00019912,2]
[380503821,1755796245265,-480.0,0.00019912,2]
[380503822,1755796245274,-480.0,0.00019912,2]
[380503823,1755796245284,-480.0,0.00019912,2]
[380503824,1755796245294,-480.0,0.00019912,2]
[380503825,1755796245303,-480.0,0.00019912,2]
[380503826,1755796245314,-480.0,0.00019912,2]
[380503827,1755796245324,-480.0,0.00019912,2]
[380503828,1755796245333,-480.0,0.00019912,2]
[380503829,1755796245342,-480.0,0.00019912,2]
[380503830,1755796245351,-630.38,0.00019912,2]
[380503831,1755796245362,-480.0,0.00019912,2]
[380503832,1755796245379,-480.0,0.00019912,2]
[380503833,1755796245388,-480.0,0.00019912,2]
[380503834,1755796245398,-480.0,0.00019912,2]
[380503835,1755796245408,-754.78,0.00019912,2]
[380503836,1755796245418,-480.0,0.00019912,2]
[380503837,1755796245428,-480.0,0.00019912,2]
[380503838,1755796245439,-880.68,0.00019912,2]
[380503839,1755796245448,-480.0,0.00019912,2]
[380503840,1755796245457,-1106.61,0.00019912,2]
[380503841,1755796245467,-1175.7,0.00019912,2]
[380503842,1755796245477,-480.0,0.00019912,2]
[380503843,1755796245486,-480.0,0.00019912,2]
[380503844,1755796245496,-151.51071557,0.00019913,2]
[380503845,1755796245506,-1345.63883324,0.00019939,2]
[380503846,1755796245515,-2230.55283587,0.00019954,2]
[380503847,1755796245525,-1405.68963517,0.00019961,2]
[380503848,1755796245535,-7364.81235775,0.0001999,2]
[380503849,1755796245545,-600.0,0.00019999,2]
[380503850,1755796245557,-1438.54131713,0.00020008,2]
[380503851,1755796245567,-344.32622427,0.00020013,2]
[380503852,1755796245576,-480.0,0.00020013,2]
[380503853,1755796245586,-480.0,0.00020013,2]
[380503855,1755796245597,-480.0,0.00020013,2]
[380503856,1755796245606,-480.0,0.00020013,2]
[380503857,1755796245617,-480.0,0.00020013,2]
[380503858,1755796245627,-480.0,0.00020013,2]
[380503859,1755796245638,-480.0,0.00020013,2]
[380503861,1755796245648,-480.0,0.00020013,2]
[380503863,1755796245658,-480.0,0.00020013,2]
[380503865,1755796245667,-480.0,0.00020013,2]
[380503867,1755796245682,-299.22437161,0.00020013,2]
[380503869,1755796245692,-480.0,0.00020013,2]
[380503870,1755796245701,-480.0,0.00020013,2]
[380503872,1755796245711,-494.99,0.00020013,2]
[380503874,1755796245721,-423.23123391,0.00020013,2]
[380503876,1755796245730,-480.0,0.00020013,2]
[380503878,1755796245740,-480.0,0.00020013,2]
[380503880,1755796245750,-480.0,0.00020013,2]
[380503882,1755796245759,-480.0,0.00020013,2]
[380503884,1755796245769,-531.16080314,0.00020013,2]
[380503886,1755796245779,-480.0,0.00020013,2]
[380503889,1755796245789,-480.0,0.00020013,2]
[380503891,1755796245798,-480.0,0.00020013,2]
[380503893,1755796245808,-480.0,0.00020013,2]
[380503895,1755796245818,-480.0,0.00020013,2]
[380503897,1755796245827,-480.0,0.00020013,2]
[380503899,1755796245837,-480.0,0.00020013,2]
[380503901,1755796245846,-480.0,0.00020013,2]
[380503903,1755796245857,-480.0,0.00020013,2]
[380503905,1755796245868,-480.0,0.00020013,2]
[380503907,1755796245878,-555.05,0.00020013,2]
[380503909,1755796245888,-662.68,0.00020013,2]
[380503911,1755796245897,-480.0,0.00020013,2]
[380503913,1755796245909,-480.0,0.00020013,2]
[380503914,1755796245919,-441.18482522,0.00020013,2]
[380503915,1755796245932,-480.0,0.00020013,2]
[380503916,1755796245942,-480.0,0.00020013,2]
[380503917,1755796245951,-504.0,0.00020013,2]
[380503918,1755796245962,-480.0,0.00020013,2]
[380503919,1755796245971,-480.0,0.00020013,2]
[380503920,1755796245981,-480.0,0.00020013,2]
[380503921,1755796245992,-472.00296018,0.00020013,2]
[380503922,1755796246003,-579.16,0.00020013,2]
[380503923,1755796246013,-878.34,0.00020013,2]
[380503924,1755796246022,-625.09,0.00020013,2]
[380503925,1755796246032,-500.0,0.00020013,2]
[380503926,1755796246041,-480.0,0.00020013,2]
[380503927,1755796246051,-480.0,0.00020013,2]
[380503928,1755796246060,-480.0,0.00020013,2]
[380503929,1755796246070,-480.0,0.00020013,2]
[380503930,1755796246080,-480.0,0.00020013,2]
[380503931,1755796246090,-480.0,0.00020013,2]
[380503932,1755796246100,-480.0,0.00020013,2]
[380503933,1755796246110,-480.0,0.00020013,2]
[380503934,1755796246120,-473.11147497,0.00020013,2]
[380503935,1755796246130,-404.23407826,0.00020013,2]
[380503936,1755796246140,-480.0,0.00020013,2]
[380503937,1755796246151,-480.0,0.00020013,2]
[380503938,1755796246161,-662.68,0.00020013,2]
[380503939,1755796246171,-480.0,0.00020013,2]
[380503940,1755796246184,-480.0,0.00020013,2]
[380503941,1755796246193,-486.45,0.00020013,2]
[380503942,1755796246203,-309.00680071,0.00020013,2]
[380503943,1755796246213,-480.0,0.00020013,2]
[380503944,1755796246223,-480.0,0.00020013,2]
[380503945,1755796246233,-480.0,0.00020013,2]
[380503946,1755796246244,-741.24,0.00020013,2]
[380503947,1755796246255,-480.0,0.00020013,2]
[380503948,1755796246265,-443.96229288,0.00020013,2]
[380503949,1755796246275,-341.04471795,0.00020013,2]
[380503950,1755796246284,-480.0,0.00020013,2]
[380503952,1755796246295,-480.0,0.00020013,2]
[380503954,1755796246305,-490.79,0.00020013,2]
[380503956,1755796246316,-839.98,0.00020013,2]
[380503958,1755796246325,-480.0,0.00020013,2]
[380503959,1755796246335,-480.0,0.00020013,2]
[380503960,1755796246345,-480.0,0.00020013,2]
[380503961,1755796246357,-617.8,0.00020013,2]
[380503962,1755796246372,-480.0,0.00020013,2]
[380503963,1755796246382,-481.90805268,0.00020013,2]
[380503965,1755796246392,-417.80604252,0.00020013,2]
[380503967,1755796246403,-756.41,0.00020013,2]
[380503968,1755796246413,-480.0,0.00020013,2]
[380503970,1755796246423,-988.19,0.00020013,2]
[380503972,1755796246441,-719.39,0.00020013,2]
[380503973,1755796246454,-480.0,0.00020013,2]
[380503974,1755796246464,-480.0,0.00020013,2]
[380503975,1755796246474,-896.1,0.00020013,2]
[380503976,1755796246485,-480.0,0.00020013,2]
[380503977,1755796246495,-463.81385654,0.00020013,2]
[380503978,1755796246506,-735.04,0.00020013,2]
[380503979,1755796246518,-526.43,0.00020013,2]
[380503980,1755796246527,-751.72,0.00020013,2]
[380503981,1755796246537,-480.0,0.00020013,2]
[380503982,1755796246549,-1889.29,0.00020013,2]
[380503983,1755796246560,-480.0,0.00020013,2]
[380503984,1755796246571,-480.0,0.00020013,2]
[380503985,1755796246582,-480.0,0.00020025,2]
[380503987,1755796246593,-344.30594512,0.00020025,2]
[380503988,1755796246604,-480.0,0.00020025,2]
[380503989,1755796246614,-480.0,0.00020025,2]
[380503990,1755796246624,-480.0,0.00020025,2]
[380503991,1755796246634,-3282.55882051,0.00020069,2]
[380503992,1755796246644,-235.20195932,0.00020069,2]
[380503993,1755796246654,-500.77225769,0.00020073,2]
[380503994,1755796246665,-500.0,0.00020073,2]
[380503995,1755796246677,-500.0,0.00020073,2]
[380503997,1755796246688,-500.0,0.00020073,2]
[380503998,1755796246698,-200.39317981,0.00020073,2]
[380503999,1755796246707,-1345.63883324,0.00020073,2]
[380504000,1755796246717,-151.0,0.000201,3]
[380504001,1755796246726,-151.0,0.000201,3]
[380504002,1755796246737,-553.68,0.0002017,2]
[380504003,1755796246746,-952.91,0.0002017,2]
[380504004,1755796246756,-1069.9,0.0002017,2]
[380504005,1755796246769,-841.6,0.0002017,2]
[380504006,1755796246778,-1098.95,0.0002017,2]
[380504007,1755796246788,-480.0,0.0002017,2]
[380504008,1755796246798,-251.74693007,0.00020171,2]
[380504009,1755796246807,-5724.64,0.00020171,2]
[380504010,1755796246817,-480.0,0.00020171,2]
[380504011,1755796246826,-3111.45,0.00020171,2]
[380504012,1755796246836,-638.16,0.00020171,2]
[380504013,1755796246846,-1517.06,0.00020171,2]
[380504014,1755796246855,-1101.04,0.00020171,2]
[380504015,1755796246865,-480.0,0.00020171,2]
[380504016,1755796246875,-480.0,0.00020171,2]
[380504017,1755796246885,-4775.52,0.00020171,2]
[380504018,1755796246895,-6987.43,0.00020171,2]
[380504019,1755796246905,-3878.59,0.00020171,2]
[380504020,1755796246915,-1093.09,0.00020171,2]
[380504021,1755796246927,-480.0,0.00020171,2]
[380504022,1755796246936,-2831.65,0.00020171,2]
[380504023,1755796246946,-899.66,0.00020171,2]
[380504024,1755796246956,-3918.0,0.00020171,2]
[380504025,1755796246966,-1555.41,0.00020171,2]
[380504026,1755796246976,-480.0,0.00020171,2]
[380504027,1755796246986,-480.0,0.00020171,2]
[380504028,1755796246996,-596.22,0.00020171,2]
[380504029,1755796247006,-708.6,0.00020171,2]
[380504030,1755796247016,-1773.59,0.00020171,2]
[380504031,1755796247026,-462.52578215,0.00020172,2]
[380504032,1755796247037,-500.0,0.00020173,2]
[380504033,1755796247047,-489.27788683,0.00020173,2]
[380504034,1755796247057,-500.0,0.00020173,2]
[380504035,1755796247066,-500.0,0.00020173,2]
[380504036,1755796247076,-500.0,0.00020173,2]
[380504037,1755796247085,-500.0,0.00020173,2]
[380504038,1755796247096,-525.92403447,0.00020173,2]
[380504039,1755796247107,-500.0,0.00020173,2]
[380504040,1755796247117,-500.0,0.00020173,2]
[380504041,1755796247127,-254.98225644,0.00020173,2]
[380504042,1755796247136,-500.0,0.00020173,2]
[380504043,1755796247147,-501.721902,0.00020173,2]
[380504044,1755796247157,-500.0,0.00020173,2]
[380504045,1755796247167,-500.0,0.00020173,2]
[380504046,1755796247178,-500.0,0.00020173,2]
[380504047,1755796247188,-500.0,0.00020173,2]
[380504048,1755796247197,-245.44409642,0.00020173,2]
[380504049,1755796247207,-490.0,0.00020173,2]
[380504050,1755796247219,-474.88360333,0.00020173,2]
[380504051,1755796247228,-500.0,0.00020173,2]
[380504052,1755796247238,-167.79492451,0.00020173,2]
[380504053,1755796247248,-500.0,0.00020173,2]
[380504054,1755796247258,-500.0,0.00020173,2]
[380504055,1755796247268,-333.92010939,0.00020173,2]
[380504056,1755796247277,-321.60649632,0.00020173,2]
[380504057,1755796247287,-500.41414076,0.00020173,2]
[380504058,1755796247296,-489.56830633,0.00020173,2]
[380504059,1755796247306,-499.62629551,0.00020173,2]
[380504060,1755796247316,-500.0,0.00020173,2]
[380504061,1755796247325,-500.0,0.00020173,2]
[380504062,1755796247335,-500.0,0.00020173,2]
[380504063,1755796247343,-500.0,0.00020173,2]
[380504064,1755796247353,-500.0,0.00020173,2]
[380504065,1755796247364,-500.0,0.00020173,2]
[380504066,1755796247374,-704.13,0.00020173,2]
[380504067,1755796247383,-845.88,0.00020173,2]
[380504068,1755796247393,-480.0,0.00020173,2]
[380504069,1755796247402,-380.0,0.00020173,2]
[380504070,1755796247412,-480.0,0.00020173,2]
[380504071,1755796247421,-480.0,0.00020173,2]
[380504072,1755796247432,-480.0,0.00020173,2]
[380504073,1755796247441,-480.0,0.00020173,2]
[380504074,1755796247491,-480.0,0.00020173,2]
[380504075,1755796247500,-480.0,0.00020173,2]
[380504076,1755796247509,-480.0,0.00020173,2]
[380504077,1755796247519,-480.0,0.00020173,2]
[380504078,1755796247528,-239.51452337,0.00020173,2]
[380504079,1755796247537,-480.0,0.00020173,2]
[380504080,1755796247547,-622.82956647,0.00020173,2]
[380504081,1755796247556,-480.0,0.00020173,2]
[380504082,1755796247565,-480.0,0.00020173,2]
[380504083,1755796247574,-480.0,0.00020173,2]
[380504084,1755796247583,-480.0,0.00020173,2]
[380504085,1755796247593,-1251.4,0.00020173,2]
[380504086,1755796247602,-480.0,0.00020173,2]
[380504087,1755796247611,-1860.53,0.00020173,2]
[380504088,1755796247621,-480.0,0.00020173,2]
[380504089,1755796247630,-1217.86,0.00020173,2]
[380504090,1755796247639,-480.0,0.00020173,2]
[380504091,1755796247650,-584.1,0.00020173,2]
[380504092,1755796247659,-480.0,0.00020173,2]
[380504093,1755796247668,-566.7,0.00020173,2]
[380504094,1755796247678,-211.49329392,0.00020173,2]
[380504095,1755796247687,-480.0,0.00020173,2]
[380504096,1755796247696,-480.0,0.00020173,2]
[380504097,1755796247706,-480.0,0.00020173,2]
[380504098,1755796247716,-480.0,0.00020173,2]
[380504099,1755796247724,-480.0,0.00020173,2]
[380504100,1755796247734,-480.0,0.00020173,2]
[380504101,1755796247744,-480.0,0.00020173,2]
[380504102,1755796247754,-1339.59,0.00020173,2]
[380504103,1755796247763,-764.64,0.00020173,2]
[380504104,1755796247772,-1403.75,0.00020173,2]
[380504106,1755796247782,-480.0,0.00020173,2]
[380504108,1755796247791,-493.09,0.00020173,2]
[380504110,1755796247800,-1591.86,0.00020173,2]
[380504112,1755796247810,-1264.66,0.00020173,2]
[380504114,1755796247819,-480.0,0.00020173,2]
[380504116,1755796247828,-480.0,0.00020173,2]
[380504118,1755796247837,-480.0,0.00020173,2]
[380504120,1755796247846,-638.49,0.00020173,2]
[380504122,1755796247856,-480.0,0.00020173,2]
[380504124,1755796247865,-898.89,0.00020173,2]
[380504126,1755796247874,-443.13980102,0.00020173,2]
[380504128,1755796247883,-712.51,0.00020173,2]
[380504130,1755796247893,-1704.85,0.00020173,2]
[380504132,1755796247903,-578.35,0.00020173,2]
[380504134,1755796247912,-1348.45,0.00020173,2]
[380504136,1755796247922,-480.0,0.00020173,2]
[380504138,1755796247934,-480.0,0.00020173,2]
[380504140,1755796247943,-1704.87,0.00020173,2]
[380504142,1755796247952,-1021.37,0.00020173,2]
[380504144,1755796247961,-480.0,0.00020173,2]
[380504146,1755796247970,-2738.27,0.00020173,2]
[380504148,1755796247979,-764.6,0.00020173,2]
[380504150,1755796247989,-1669.08,0.00020173,2]
[380504152,1755796247998,-3186.28,0.00020173,2]
[380504154,1755796248007,-2363.46,0.00020173,2]
[380504156,1755796248016,-862.84,0.00020173,2]
[380504158,1755796248026,-480.0,0.00020173,2]
[380504160,1755796248035,-1526.94,0.00020173,2]
[380504162,1755796248044,-480.0,0.00020173,2]
[380504164,1755796248054,-517.72,0.00020173,2]
[380504166,1755796248063,-13490.57,0.00020173,2]
[380504168,1755796248072,-460.08295335,0.00020173,2]
[380504170,1755796248082,-749.78,0.00020173,2]
[380504172,1755796248091,-514.0,0.00020173,2]
[380504174,1755796248102,-480.0,0.00020173,2]
[380504176,1755796248111,-3003.54,0.00020173,2]
[380504178,1755796248120,-725.46,0.00020173,2]
[380504180,1755796248130,-480.0,0.00020173,2]
[380504182,1755796248139,-480.0,0.00020173,2]
[380504184,1755796248149,-12836.72,0.00020173,2]
[380504186,1755796248159,-480.0,0.00020173,2]
[380504188,1755796248170,-480.0,0.00020173,2]
[380504190,1755796248181,-1243.1,0.00020173,2]
[380504192,1755796248190,-480.0,0.00020173,2]
[380504194,1755796248199,-1609.93,0.00020173,2]
[380504196,1755796248208,-480.0,0.00020173,2]
[380504198,1755796248217,-480.0,0.00020173,2]
[380504200,1755796248227,-480.0,0.00020173,2]
[380504202,1755796248238,-480.0,0.00020173,2]
[380504203,1755796248247,-8565.46,0.00020173,2]
[380504205,1755796248257,-480.0,0.00020173,2]
[380504208,1755796248267,-513.5,0.00020174,2]
[380504209,1755796248276,-2071.92,0.00020174,2]
[380504211,1755796248286,-1723.01,0.00020174,2]
[380504214,1755796248297,-480.0,0.00020174,2]
[380504216,1755796248307,-3623.53,0.00020174,2]
[380504218,1755796248317,-500.0,0.00020185,2]
[380504219,1755796248326,-480.0,0.00020185,2]
[380504221,1755796248335,-513.47,0.00020185,2]
[380504223,1755796248344,-480.0,0.00020185,2]
[380504225,1755796248355,-481.12,0.00020185,2]
[380504227,1755796248369,-463.23249831,0.00020185,2]
[380504229,1755796248379,-1100.62,0.00020185,2]
[380504231,1755796248388,-676.36,0.00020185,2]
[380504233,1755796248398,-544.49,0.00020185,2]
[380504235,1755796248408,-480.0,0.00020185,2]
[380504237,1755796248421,-480.0,0.00020185,2]
[380504240,1755796248435,-480.0,0.00020185,2]
[380504242,1755796248448,-773.22,0.00020185,2]
[380504244,1755796248459,-463.39535369,0.00020185,2]
[380504246,1755796248468,-480.0,0.00020185,2]
[380504248,1755796248477,-1666.89,0.00020185,2]
[380504250,1755796248487,-480.0,0.00020185,2]
[380504252,1755796248496,-480.0,0.00020185,2]
[380504254,1755796248506,-574.32,0.00020185,2]
[380504256,1755796248515,-686.37,0.00020185,2]
[380504258,1755796248524,-480.0,0.00020185,2]
[380504260,1755796248533,-783.65,0.00020185,2]
[380504262,1755796248543,-991.06,0.00020185,2]
[380504264,1755796248552,-480.0,0.00020185,2]
[380504265,1755796248561,-804.94,0.00020185,2]
[380504267,1755796248571,-480.0,0.00020185,2]
[380504269,1755796248580,-4916.94,0.00020185,2]
[380504271,1755796248590,-480.0,0.00020185,2]
[380504273,1755796248599,-1776.85,0.00020185,2]
[380504275,1755796248608,-918.37,0.00020185,2]
[380504277,1755796248618,-1076.14,0.00020185,2]
[380504279,1755796248627,-525.31,0.00020185,2]
[380504281,1755796248636,-2049.35,0.00020185,2]
[380504283,1755796248646,-480.0,0.00020185,2]
[380504285,1755796248655,-1215.14,0.00020185,2]
[380504287,1755796248664,-793.31,0.00020185,2]
[380504289,1755796248673,-480.0,0.00020186,2]
[380504291,1755796248685,-480.0,0.00020186,2]
[380504293,1755796248694,-1285.05,0.00020186,2]
[380504295,1755796248704,-884.72,0.00020186,2]
[380504297,1755796248713,-978.38,0.00020186,2]
[380504299,1755796248722,-480.0,0.00020186,2]
[380504301,1755796248731,-480.0,0.00020186,2]
[380504303,1755796248740,-480.0,0.00020186,2]
[380504305,1755796248750,-480.0,0.00020186,2]
[380504307,1755796248759,-801.62,0.00020186,2]
[380504309,1755796248769,-351.59800082,0.00020186,2]
[380504311,1755796248784,-1223.71,0.00020186,2]
[380504313,1755796248794,-480.0,0.00020186,2]
[380504315,1755796248803,-677.58,0.00020186,2]
[380504317,1755796248813,-462.5480471,0.00020186,2]
[380504319,1755796248822,-480.0,0.00020186,2]
[380504321,1755796248831,-480.0,0.00020186,2]
[380504323,1755796248843,-480.0,0.00020186,2]
[380504325,1755796248855,-480.0,0.00020186,2]
[380504327,1755796248865,-480.0,0.00020186,2]
[380504328,1755796248875,-480.0,0.00020186,2]
[380504330,1755796248885,-566.96,0.00020186,2]
[380504332,1755796248895,-480.0,0.00020186,2]
[380504334,1755796248904,-480.0,0.00020186,2]
[380504336,1755796248913,-480.0,0.00020186,2]
[380504338,1755796248925,-480.0,0.00020186,2]
[380504340,1755796248936,-1649.16,0.00020186,2]
[380504343,1755796248945,-480.0,0.00020186,2]
[380504344,1755796248956,-480.0,0.00020186,2]
[380504346,1755796248965,-715.91,0.00020186,2]
[380504348,1755796248974,-480.0,0.00020186,2]
[380504350,1755796248983,-691.28,0.00020186,2]
[380504352,1755796248992,-480.0,0.00020186,2]
[380504354,1755796249002,-480.0,0.00020186,2]
[380504356,1755796249013,-1001.2,0.00020186,2]
[380504358,1755796249023,-480.0,0.00020186,2]
[380504360,1755796249033,-248.19740781,0.00020186,2]
[380504362,1755796249043,-480.0,0.00020186,2]
[380504364,1755796249053,-720.08,0.00020186,2]
[380504366,1755796249064,-480.0,0.00020186,2]
[380504368,1755796249075,-823.48,0.00020186,2]
[380504370,1755796249085,-480.0,0.00020186,2]
[380504372,1755796249095,-393.54981042,0.00020186,2]
[380504374,1755796249105,-480.0,0.00020186,2]
[380504376,1755796249116,-480.0,0.00020186,2]
[380504378,1755796249125,-612.13,0.00020186,2]
[380504380,1755796249135,-502.96,0.00020186,2]
[380504382,1755796249145,-551.16,0.00020186,2]
[380504384,1755796249155,-529.97,0.00020186,2]
[380504386,1755796249165,-750.1,0.00020186,2]
[380504388,1755796249175,-3389.44,0.00020186,2]
[380504390,1755796249186,-480.0,0.00020186,2]
[380504392,1755796249195,-480.0,0.00020186,2]
[380504394,1755796249205,-480.0,0.00020186,2]
[380504396,1755796249215,-587.17,0.00020186,2]
[380504398,1755796249225,-385.88157902,0.00020186,2]
[380504400,1755796249236,-480.0,0.00020186,2]
[380504402,1755796249246,-480.0,0.00020186,2]
[380504404,1755796249256,-480.0,0.00020186,2]
[380504406,1755796249266,-480.0,0.00020186,2]
[380504408,1755796249275,-480.0,0.00020186,2]
[380504410,1755796249285,-480.0,0.00020186,2]
[380504412,1755796249294,-630.38,0.00020186,2]
[380504414,1755796249303,-480.0,0.00020186,2]
[380504416,1755796249313,-480.0,0.00020186,2]
[380504418,1755796249323,-480.0,0.00020186,2]
[380504420,1755796249333,-480.0,0.00020186,2]
[380504422,1755796249342,-754.78,0.00020186,2]
[380504424,1755796249352,-480.0,0.00020186,2]
[380504426,1755796249363,-480.0,0.00020186,2]
[380504428,1755796249375,-880.68,0.00020186,2]
[380504430,1755796249384,-1106.61,0.00020186,2]
[380504432,1755796249394,-1175.7,0.00020186,2]
[380504434,1755796249403,-480.0,0.00020186,2]
[380504436,1755796249413,-345.430671,0.00020187,2]
[380504438,1755796249423,-480.0,0.00020287,2]
[380504440,1755796249434,-480.0,0.00020287,2]
[380504442,1755796249445,-480.0,0.00020287,2]
[380504444,1755796249455,-289.36061722,0.00020287,2]
[380504446,1755796249465,-480.0,0.00020287,2]
[380504448,1755796249475,-480.0,0.00020287,2]
[380504450,1755796249485,-480.0,0.00020287,2]
[380504452,1755796249494,-480.0,0.00020287,2]
[380504454,1755796249503,-480.0,0.00020287,2]
[380504456,1755796249513,-480.0,0.00020287,2]
[380504458,1755796249523,-480.0,0.00020287,2]
[380504460,1755796249532,-494.99,0.00020287,2]
[380504462,1755796249542,-480.0,0.00020287,2]
[380504464,1755796249552,-480.0,0.00020287,2]
[380504466,1755796249562,-480.0,0.00020287,2]
[380504468,1755796249572,-480.0,0.00020287,2]
[380504470,1755796249582,-480.0,0.00020287,2]
[380504472,1755796249592,-480.0,0.00020287,2]
[380504474,1755796249603,-480.0,0.00020287,2]
[380504476,1755796249612,-463.77544855,0.00020287,2]
[380504478,1755796249621,-480.0,0.00020287,2]
[380504480,1755796249631,-480.0,0.00020287,2]
[380504482,1755796249641,-480.0,0.00020287,2]
[380504484,1755796249651,-480.0,0.00020287,2]
[380504486,1755796249660,-555.05,0.00020287,2]
[380504488,1755796249669,-662.68,0.00020287,2]
[380504490,1755796249679,-480.0,0.00020287,2]
[380504492,1755796249688,-480.0,0.00020287,2]
[380504494,1755796249698,-480.0,0.00020287,2]
[380504496,1755796249707,-504.0,0.00020287,2]
[380504498,1755796249716,-480.0,0.00020287,2]
[380504500,1755796249725,-480.0,0.00020287,2]
[380504502,1755796249735,-579.16,0.00020287,2]